Cogmind - Beta 15 @@@ ROGUE MODE // 2025.06.18 @ 09:37:24 // Halloween2020/ForbiddenLore Player: Storm Mk9 Result: Destroyed by H-55 Commando with Gauss Rifle Performance ------------- Evolutions (3) 1500 Regions Visited (4) 800 Robots Destroyed (82) 410 Value Destroyed (2284) 2284 Prototype IDs (10) 200 Alien Tech Used (0) 0 Bonus (11) 11 TOTAL SCORE: 5205 Bonus ------- High Alert Combat Kills 11 Cogmind --------- Core Integrity 0/700 Matter 163/300 Energy 60/100 System Corruption 9% Temperature Cool (0) Movement Core (750) Ox14 Location -7/Factory Parts ------- > --- POWER (2) -------- (None) > --- PROPULSION (3) --- (None) > --- UTILITY (5) ------ High-capacity Storage Unit Advanced Targeting Computer > --- WEAPON (3) ------- Heavy Particle Gun > --- INVENTORY (20) --- Improved Heat Sink Improved Cooling System Kinecellerator Transmission Jammer Heavy Particle Gun Advanced Beam Rifle Advanced Beam Rifle Advanced Beam Rifle Mining Laser Spear Peak State ------------ > --- POWER ------------ Light Ion Engine Light Nuclear Core > --- PROPULSION ------- Light Treads Light Treads Advanced Treads > --- UTILITY ---------- Improved Heat Sink Advanced Heat Sink High-capacity Storage Unit Advanced Targeting Computer Hardened Light Armor Plating > --- WEAPON ----------- Precision Shock Rifle Cooled Pulse Rifle Improved Assault Rifle > --- INVENTORY -------- Improved Cooling System Kinecellerator Transmission Jammer Hardened Light Armor Plating Hardened Light Armor Plating EM Pulse Gun Heavy Particle Gun Heavy Particle Gun Advanced Beam Rifle Advanced Beam Rifle Advanced Beam Rifle Advanced Beam Rifle Advanced Beam Rifle Assault Rifle Autogun Minigun Gauss Rifle Gauss Rifle Mining Laser Spear [Rating: 42] Favorites ----------- Power Ion Engine Engine Ion Engine Power Core Light Nuclear Core Propulsion Light Treads Treads Light Treads Utility Improved Heat Sink Device Improved Heat Sink Storage Small Storage Unit Processor Advanced Targeting Computer Protection Light Armor Plating Weapon Assault Rifle Energy Gun Cooled Pulse Rifle Ballistic Gun Assault Rifle Special Weapon Mining Laser Build | -11 -10 -10 -8 -7 ------- Run | Yrd Mat Sub Mat Fac Slots Evolved 6 | . . . 4 2 Power 1 | . . . . 1 Propulsion 1 | . . . 1 . Utility 3 | . . . 2 1 Weapon 1 | . . . 1 . Parts Attached 52 | 7 2 6 13 24 Power 6 | 1 . . 2 3 Engine 5 | 1 . . 2 2 Core 1 | . . . . 1 Reactor . | . . . . . Propulsion 12 | 2 1 3 2 4 Treads 12 | 2 1 3 2 4 Leg . | . . . . . Wheel . | . . . . . Hover . | . . . . . Flight . | . . . . . Utility 15 | 2 . 1 7 5 Device 5 | 1 . 1 3 . Storage 3 | 1 . . 2 . Processor 1 | . . . . 1 Hackware . | . . . . . Protection 6 | . . . 2 4 Artifact . | . . . . . Weapon 19 | 2 1 2 2 12 Energy Gun 6 | . . . 2 4 Energy Cannon . | . . . . . Ballistic Gun 12 | 2 . 2 . 8 Ballistic Cannon . | . . . . . Launcher . | . . . . . Special Weapon 1 | . 1 . . . Impact Weapon . | . . . . . Slashing Weapon . | . . . . . Piercing Weapon . | . . . . . Special Melee Weapon . | . . . . . Unidentified Prototypes 6 | . . . 3 3 Parts Lost 34 | . . 1 4 29 Power 5 | . . . . 5 Propulsion 9 | . . . 2 7 Utility 7 | . . 1 2 4 Weapon 13 | . . . . 13 Highest Loss Streak 21 | . . 1 2 21 To Critical Strikes . | . . . . . Average Backups 10 | 2 7 7 11 16 Power 1 | . 1 1 1 . Propulsion 2 | . 2 3 2 . Utility . | . . . . 2 Weapon 6 | 1 2 3 7 13 Tool/Special . | . . . . . Unused Backups 9 | . 1 . . 8 Power . | . . . . . Propulsion 1 | . 1 . . . Utility 3 | . . . . 3 Weapon 5 | . . . . 5 Tool/Special . | . . . . . Average Slot Usage (%) 95 | . 100 100 89 93 Engine 11 | . 14 14 9 8 Core 1 | . . . . 4 Treads 25 | . 28 28 26 20 Device 14 | . 14 14 15 13 Storage 10 | . 14 14 9 7 Processor 1 | . . . . 6 Protection 3 | . . . 5 7 Energy Gun 3 | . . . 5 6 Ballistic Gun 21 | . 27 26 18 14 Peak Build Rating 42 | 7 8 12 31 42 Average Rating 19 | 5 7 10 23 35 On Entrance 11 | . 7 8 12 31 Naked Turns . | . . . . . Heaviest Build 67 | 15 15 16 60 67 Greatest Support 62 | 40 40 40 60 62 Greatest Overweight (x) 19 | . . . . 19 Average Overweight (x) . | . . . . 1 Largest Inventory Capacity 20 | 8 8 8 20 20 Average Capacity 13 | 7 8 8 16 20 Most Carried 20 | 5 8 8 17 20 Average Carried 10 | 2 7 7 11 16 Final Capacity 20 | 8 8 8 20 20 Final Carried 17 | 4 8 8 17 10 Class Distribution -------------------- 59% | Mutant 22% | Scavenger-Gunner 11% | Scavenger-Tank Dominant Class ---------------- Mutant | -10/Materials Mutant | -10/Subcaves Scavenger-Tank | -8/Materials Scavenger-Gunner | -7/Factory Resources | -11 -10 -10 -8 -7 ----------- Run | Yrd Mat Sub Mat Fac Matter Collected 1643 | 231 219 127 554 512 Remotely . | . . . . . Salvage Created 3211 | 23 338 132 1201 1517 Parts 186 | 8 13 11 69 85 Haulers Intercepted 6 | . . . 3 3 Recyclers Shooed . | . . . . . Parts Field Recycled . | . . . . . Retrieved Matter . | . . . . . Parts Self-Destructed 10 | . . 10 . . Prevented . | . . . . . Kills | -11 -10 -10 -8 -7 ------- Run | Yrd Mat Sub Mat Fac Combat Hostiles Destroyed 60 | . 9 7 21 23 Guns 60 | . 9 7 21 23 Classes Destroyed 13 | 1 2 1 4 5 Worker 2 | . . . 2 . Builder 6 | . . . 5 1 Tunneler 2 | 2 . . . . Hauler 6 | . . . 3 3 Recycler 5 | . . . . 5 Watcher 1 | . . . 1 . Swarmer 23 | . 2 6 7 8 Grunt 23 | . 7 . 12 4 Duelist 1 | . . . . 1 Protector 1 | . . . . 1 Sentry 3 | . . 1 2 . Hunter 4 | . . . . 4 Programmer 5 | . . . . 5 Best Kill Streak 18 | 1 2 3 18 6 Combat Bots Only 14 | . 2 3 14 4 Max Kills in Single Turn 2 | 1 1 1 2 2 Gunslinging 1 | . . . 1 1 Exploded . | . . . . . Melee . | . . . . . Uniques/NPCs Destroyed . | . . . . . Combat | -11 -10 -10 -8 -7 -------- Run | Yrd Mat Sub Mat Fac Hostile Shots Fired 572 | . 23 42 114 393 Missed 152 | . 6 9 25 112 Hits 420 | . 17 33 89 281 Melee 6 | . . . . 6 Projectile 414 | . 17 33 89 275 Critical Strikes 8 | . 1 . 3 4 Part Disruptions 1 | . . . . 1 Damage Taken 6064 | . 199 396 1220 4249 Core 962 | . 11 120 122 709 Absorbed by Shields . | . . . . . Core Remaining (%) 74 | 100 . 47 77 . Volleys Fired 191 | 3 24 31 58 75 Largest 3 | 2 2 2 3 3 Hottest 150 | 40 100 100 109 150 Shots Fired 464 | 6 45 48 166 199 Gun 449 | 6 44 34 166 199 Cannon . | . . . . . Launcher . | . . . . . Special 15 | . 1 14 . . Kinetic 349 | 6 44 34 128 137 Thermal 113 | . 1 14 38 60 Explosive . | . . . . . Electromagnetic 2 | . . . . 2 Robot Hit Streak 25 | 3 10 12 13 25 Robot Miss Streak 7 | 1 2 2 7 5 Penetration Max 1 | . . . . 1 Secondary Targets 16 | . 1 2 6 7 Max Gunslinging Chain 1 | . 1 1 1 1 Shots Hit Robots 298 | 4 29 23 105 137 Core Hits 132 | 2 16 9 47 58 Critical Kills 2 | . . . 1 1 Critical Parts Destroyed 1 | . . . 1 . Critical Strikes 5 | . . . 3 2 Burn 2 | . . . 1 1 Destroy 3 | . . . 2 1 Melee Attacks . | . . . . . Impact . | . . . . . Slashing . | . . . . . Piercing . | . . . . . Sneak Attacks . | . . . . . Combat Hostiles . | . . . . . Follow-up Attacks . | . . . . . Damage Inflicted 5257 | 53 380 273 1879 2672 Guns 5257 | 53 380 273 1879 2672 Cannons . | . . . . . Explosions . | . . . . . Melee . | . . . . . Ramming . | . . . . . Kinetic 3564 | 53 380 273 1326 1532 Thermal 1663 | . . . 553 1110 Explosive . | . . . . . Electromagnetic 30 | . . . . 30 Impact . | . . . . . Slashing . | . . . . . Piercing . | . . . . . Highest Corruption 9 | . . . . 9 Average Corruption 2 | . . . . 2 Corruption Purged . | . . . . . Corruption Blocked . | . . . . . Effects 4 | . . . . 4 Message Errors 1 | . . . . 1 Matter Fused 2 | . . . . 2 Data Loss (minor) 1 | . . . . 1 Overload Shots 4 | . . . . 4 Overflow Damage . | . . . . . Projectiles . | . . . . . Explosions . | . . . . . Melee . | . . . . . Knockbacks . | . . . . . Impact . | . . . . . Kinetic . | . . . . . Secondary . | . . . . . Self-Inflicted Damage . | . . . . . Shots . | . . . . . Rammed . | . . . . . Targets Rammed . | . . . . . Kicked . | . . . . . Crushed . | . . . . . Highest Temperature 265 | . 20 . 265 96 Average Temperature 58 | . 9 . 91 20 Received Heat Transfer 1194 | . 108 27 657 402 Siege Activations . | . . . . . Martial Activations . | . . . . . Shielding Activations . | . . . . . Robots Disrupted . | . . . . . Combat Hostiles . | . . . . . Robots Corrupted . | . . . . . Combat Hostiles . | . . . . . Parts Fried . | . . . . . Impact Corruptions . | . . . . . Robots Melted . | . . . . . Combat Hostiles . | . . . . . Parts Melted 4 | . . . 2 2 Heat Transferred 3017 | . . . 1110 1907 Parts Sabotaged . | . . . . . Parts Stolen . | . . . . . Parts Stripped . | . . . . . Power Chain Reactions . | . . . . . Alert | -11 -10 -10 -8 -7 ------- Run | Yrd Mat Sub Mat Fac Maximum Alert Level 2 | . . . 2 . Low Security (%) 83 | 100 100 . 50 100 Level 1 14 | . . . 43 . Level 2 1 | . . . 5 . Level 3 . | . . . . . Level 4 . | . . . . . Level 5 . | . . . . . High Security . | . . . . . Max Security . | . . . . . Peak Influence 411 | 5 123 . 411 155 Initial 138 | . . . . 138 Average 110 | . 73 . 183 80 Influence Increases 1779 | 10 303 160 669 637 Destroy 0b10 Robot/C 1180 | . 180 140 420 440 Destroy 0b10 Robot/NC 115 | 10 . . 55 50 Destroy Leader 224 | . 50 20 68 86 Successful Hack 27 | . 10 . 17 . Disable Machine 30 | . . . 30 . Destroy Structure 8 | . 3 . 4 1 Partial Spotted 15 | . . . 15 . Lose Combat Pursuer 180 | . 60 . 60 60 Influence Decreases 1731 | 10 292 171 364 894 Entered New Map 173 | . . 6 . 167 Time Decay 1224 | 10 292 161 324 437 Lost Part 334 | . . 4 40 290 Squads Dispatched 9 | . 2 . 2 5 Investigation 2 | . 1 . . 1 Extermination 2 | . . . . 2 Reinforcement 5 | . 1 . 2 2 Assault . | . . . . . Garrison . | . . . . . Intercept . | . . . . . Searches Triggered . | . . . . . Construction Impeded 2 | . . . 1 1 Haulers Reinforced 1 | . . . . 1 Active Scanning Responses . | . . . . . Cargo Convoy Interrupts 1 | . . . . 1 Stealth | -11 -10 -10 -8 -7 --------- Run | Yrd Mat Sub Mat Fac Distress Signals 4 | . . . 2 2 Communications Jammed . | . . . . . Distress Signals . | . . . . . Times Spotted 110 | . 16 8 42 44 Peak Tracking Total 14 | . 3 3 9 14 Tactical Retreats 7 | . 3 . 3 1 Traps | -11 -10 -10 -8 -7 ------- Run | Yrd Mat Sub Mat Fac Traps Triggered 3 | . . 2 . 1 Indirectly . | . . . . . Trap Hack Attempts . | . . . . . Triggered . | . . . . . Disarmed . | . . . . . Reprogrammed . | . . . . . Reused . | . . . . . Traps Extracted . | . . . . . Installed . | . . . . . Triggered . | . . . . . Machines | -11 -10 -10 -8 -7 ---------- Run | Yrd Mat Sub Mat Fac Machines Disabled 2 | . . . 2 . Max in Single Turn 1 | . . . 1 . Machines Repaired . | . . . . . Machines Dismantled . | . . . . . Machines Sabotaged . | . . . . . Overloaded Fab Kills . | . . . . . Hacking | -11 -10 -10 -8 -7 --------- Run | Yrd Mat Sub Mat Fac Machines Accessed 16 | . 7 1 7 1 Terminals 14 | . 7 . 7 . Fabricators 1 | . . . . 1 Repair Stations . | . . . . . Recycling Units . | . . . . . Scanalyzers . | . . . . . Garrison Access . | . . . . . Total Hacks 48 | . 19 1 26 2 Successful 17 | . 7 1 9 . Failed 29 | . 11 . 16 2 Catastrophic 5 | . 3 . 1 1 Database Lockouts 2 | . 1 . 1 . Manual 33 | . 12 . 19 2 Terminals 45 | . 19 . 26 . Fabricators 2 | . . . . 2 Repair Stations . | . . . . . Recycling Units . | . . . . . Scanalyzers . | . . . . . Garrison Access . | . . . . . Terminal Hacks 12 | . 6 1 5 . Robot Analysis 3 | . 1 . 2 . Prototype ID Bank 2 | . 1 . 1 . Open Door 1 | . . 1 . . Branch Access Points 2 | . 1 . 1 . Emergency Access Points 1 | . . . 1 . Dispatch Records 1 | . 1 . . . Transport Status 1 | . 1 . . . Investigation Status 1 | . 1 . . . Fabricator Hacks . | . . . . . Repair Station Hacks . | . . . . . Recycling Unit Hacks . | . . . . . Scanalyzer . | . . . . . Garrison Access Hacks . | . . . . . Unauthorized Hacks 5 | . 1 . 4 . Terminals 5 | . 1 . 4 . Botnet 5 | . 1 . 4 . Fabricators . | . . . . . Repair Stations . | . . . . . Recycling Units . | . . . . . Scanalyzers . | . . . . . Garrison Access . | . . . . . Data Cores Recovered . | . . . . . Used . | . . . . . Hacking Detections 15 | . 7 . 7 1 Full Trace Events 2 | . 1 . . 1 Feedback Events . | . . . . . Feedback Blocked . | . . . . . Robot Schematics Acquired . | . . . . . Robots Built . | . . . . . Authchips . | . . . . . Time . | . . . . . Total Robot Build Rating . | . . . . . Part Schematics Acquired . | . . . . . Parts Built . | . . . . . Authchips . | . . . . . Time . | . . . . . Total Part Build Rating . | . . . . . Parts Repaired . | . . . . . Time . | . . . . . Parts Recycled . | . . . . . Recycled Matter . | . . . . . Retrieved Matter . | . . . . . Retrieved Components . | . . . . . Parts Scanalyzed . | . . . . . Part Schematics Acquired . | . . . . . Parts Damaged . | . . . . . Bothacking | -11 -10 -10 -8 -7 ------------ Run | Yrd Mat Sub Mat Fac Used RIF Installer . | . . . . . Robots Hacked . | . . . . . Non-combat . | . . . . . Combat . | . . . . . Robot Hacks Applied . | . . . . . Relay Couplers Released . | . . . . . Fabnet Peak Effective % . | . . . . . Robots Rewired . | . . . . . Allies Hacked . | . . . . . Hacks Repelled . | . . . . . Allies | -11 -10 -10 -8 -7 -------- Run | Yrd Mat Sub Mat Fac Total Allies . | . . . . . Largest Group . | . . . . . Highest-Rated Group . | . . . . . Highest-Rated Ally . | . . . . . Total Orders . | . . . . . Ally Attacks . | . . . . . Total Damage . | . . . . . Kills . | . . . . . Allies Corrupted . | . . . . . Allies Melted . | . . . . . Intel | -11 -10 -10 -8 -7 ------- Run | Yrd Mat Sub Mat Fac Active Infowar (turns) 1742 | 29 674 660 379 . Terrain 379 | . . . 379 . Seismic 1363 | 29 674 660 . . Robot Analysis Total 3 | . 1 . 2 . Derelict Logs Recovered . | . . . . . Drone Launches . | . . . . . Drone Recoveries . | . . . . . Exploration | -11 -10 -10 -8 -7 ------------- Run | Yrd Mat Sub Mat Fac Turns Passed 4590 | 137 674 1521 1038 1220 Spaces Moved 2058 | 74 312 830 457 385 Core 10 | 7 . . . 3 Treads 2048 | 67 312 830 457 382 Legs . | . . . . . Wheels . | . . . . . Hover . | . . . . . Flight . | . . . . . Fastest Speed 50 | 50 160 160 160 155 Average Speed 175 | 149 160 160 162 241 Slowest Speed 1000 | 160 160 160 165 1000 Overloaded Moves . | . . . . . Propulsion Burnouts . | . . . . . Robots Hopped . | . . . . . Potential Cave-ins . | . . . . . Cave-ins Triggered . | . . . . . Exploration Rate (%) 40 | 5 79 65 42 13 Regions Visited 4 Branch Regions 1 Pre-discovered Areas . | . . . . . Known Exits Taken . | . . . . . Unknown Exits Taken 4 | 1 1 1 1 . Scrap Searched . | . . . . . Spaces Dug 1 | . 1 . . . Terrain Destroyed 1 | . 1 . . . Melee . | . . . . . Projectile 1 | . 1 . . . AOE . | . . . . . Terrain Rammed . | . . . . . Walls Destroyed . | . . . . . Machines Disabled . | . . . . . Actions | -11 -10 -10 -8 -7 --------- Run | Yrd Mat Sub Mat Fac Total 2633 | 94 440 945 629 525 Wait 257 | . 95 73 75 14 Move 2054 | 73 311 829 456 385 Hop . | . . . . . Pick Up 52 | 11 5 1 20 15 Fast Attach 5 | . . 1 1 3 Attach 38 | 7 . 1 9 21 Detach . | . . . . . Swap 20 | . 3 5 5 7 Drop 16 | . 2 4 5 5 Fire 191 | 3 24 31 58 75 Melee . | . . . . . Ram . | . . . . . Kick . | . . . . . Crush . | . . . . . Escape Stasis . | . . . . . Rewire . | . . . . . Trap . | . . . . . Miscellaneous . | . . . . . Route ------- -11/Scrapyard -10/Materials (discovered 4 exits: [*Mat x2] / *Min / *Sub) -10/Subcaves -8/Materials -7/Factory History --------- Turn | Location | Event 5 | -11/Scrapyard | Discovered new exit (range 15) 138 | -11/Scrapyard | Entered Materials 246 | -10/Materials | Discovered new exit (range 5) 336 | -10/Materials | Build established: Mutant 568 | -10/Materials | Central database locked down 619 | -10/Materials | Discovered new exit (range 16) 709 | -10/Materials | Identified exit to Mines 802 | -10/Materials | Discovered new exit (range 5) 812 | -10/Materials | Entered Subcaves 813 | -10/Subcaves | Approached by a straggling Scientist 842 | -10/Subcaves | Shifting Twisted Machinery released Spk. Treads 1297 | -10/Subcaves | Disturbed a concealed Subdweller 1742 | -10/Subcaves | A swath of the cavern ceiling suddenly collapsed 2177 | -10/Subcaves | Shifting Twisted Machinery released Battle Cannon 2179 | -10/Subcaves | Core integrity fell below 50% 2198 | -10/Subcaves | Shifting Twisted Machinery released Battle Rifle 2252 | -10/Subcaves | Shifting Twisted Machinery released Battle Rifle 2299 | -10/Subcaves | Shifting Twisted Machinery released Spk. Treads 2308 | -10/Subcaves | Discovered new exit (range 13) 2333 | -10/Subcaves | Entered Materials 2333 | -8/Materials | Evolved 4 slots: Propulsion x1, Utility x2, Weapon x1 2925 | -8/Materials | Destroyed 14 combat bots 3214 | -8/Materials | Discovered new exit (range 16) 3281 | -8/Materials | Central database locked down 3312 | -8/Materials | Build established: Scavenger-Tank 3371 | -8/Materials | Entered Factory 3371 | -7/Factory | Evolved 2 slots: Power x1, Utility x1 3782 | -7/Factory | Build established: Scavenger-Gunner 4453 | -7/Factory | Cargo convoy interrupted 4537 | -7/Factory | Core integrity fell below 50% 4580 | -7/Factory | Core integrity fell below 20% 4591 | -7/Factory | Destroyed by H-55 Commando with Gauss Rifle Last Messages --------------- 04573_ VN4XN<=PYOSJVA >IUOIJ88F 04573_ Slug penetrates Wall. 04576_ Penetrated by Slug. 04578_ Adv. Beam Rifle destroyed. 04579_ Penetrated by Slug. 04579_ K-01 Serf collects debris. 04580_ Acquired Imp. Deuterium Engine. 04582_ Penetrated by Slug. 04583_ K-01 Serf collects debris. 04585_ Penetrated by Slug. 04585_ H-55 Commando destroyed. 04585_ Penetrated by Slug. 04585_ EM Pulse Gun destroyed. 04586_ K-01 Serf collects debris. 04588_ Imp. Deuterium Engine destroyed. 04589_ K-01 Serf collects debris. 04590_ Cld. Pulse Rifle destroyed. 04591_ P-60 Hacker resets G-47 Trooper, system corruption cleaned. 04591_ Penetrated by Slug. Map ----- +----------------------------------------------------+ | ???????????????????????????????# ??" """ T???## | | ???????????????????????????????# ??" """ ?# | | ???????????????????????????????# #?# " | | ???????????????????????????????# """ "" #?#[ " | | ???????????????????????????????# """ "" ]#?# " | | ???????????????????????????????# """ """ #?#! | | ???????????????????????????????# """ #?# | | ???????????????????????????????# """ ###### | | ???????????????????????????????# | | ???????????????????????????????# * | | ????????????????????? ?????#??# | | ????????????????????? ???? #??# | | ????????????????????? ??# #??# | | ?????????????????"???" ??#%#??#u ############# | | ????????????????"" """ ###%#### #???????????? | | ?????????????????" """ #*!=] / #???????????? | | ?????????????????? #=%!! #???????????? | | ?????????????????? ] =#[*|!![ #???????????? | | ??????????????????? =*+!g%!! % +???????????? | | ???????????????????? ![#%=]]!!%""" #???????????? | | ????????????????????? *#!=[!=u%""" #???????????? | | ?????????????????????? #=g!!=! """ #???????????? | | ???????????##?????????#!#g!!!!= F" #???????????? | | ????????? #######==|=* """ #???????????? | | ????????????? """|+%**%!![=%! "" #???????????? | | ???????????? R" #######@=!= u #???????????? | | ?????????????????????##=#%k= #???????????? | | ??????????????????????# #!%* ####p######????????? | | ?????????????????????# #! # #????????? | | ????????????????????# ###h # #????????? | | ???????????????????# #??# # #????????? | | ??????????????????# #???# # #????????? | | ??????????????????##????# + #????????? | | ????????????????????????# # #????????? | | ????????????????????????# # #????????? | | ????????????????????????# #? #????????? | | ??????????????????????? #?#########????????? | | ????????????????????? #??????????????????? | | ??????????????????? #??????????????????? | | ????????????????? #??????????????????? | | ???????????????? #??????????????????? | | ?????????????????##############??????????????????? | | ?????????????????????????????????????????????????? | | ?????????????????????????????????????????????????? | | ?????????????????????????????????????????????????? | | ?????????????????????????????????????????????????? | | ?????????????????????????????????????????????????? | | ?????????????????????????????????????????????????? | | ?????????????????????????????????????????????????? | | ?????????????????????????????????????????????????? | +----------------------------------------------------+ Best States ------------- Heat Dissipation 67 Energy Generation 19 Energy Capacity 430 Matter Stores 300 Matter Capacity 300 Sight Range 16 Terrain Scan Range 14 Terrain Scan Density 10 Armor Coverage 525 Evasion (%) 40 Targeting Accuracy 8 Recoil Reduction 3 Item Schematics ----------------- None Robot Schematics ------------------ None Fabricated ------------ Nothing Repaired ---------- Nothing Alien Tech Used ----------------- None Achievements -------------- None Challenges ------------ None Game ------ Seed DefenseWeightMesh Manual? 0 Play Time 00:37:28 Cumulative 67.1 hours Start 2025.06.18 @ 09:00:51 End 2025.06.18 @ 09:37:24 Sessions 1 Manual Loads 0 Difficulty Rogue Special Mode Halloween2020/ForbiddenLore Game No. 58 Rogue 39 Adventurer 0 Explorer 19 Win Type - Total 0 Types 0/0/0/0/0/0/0/0/0/0 Lore% 53 Gallery% 43 Achievement% 68 Wizard Run 0 Options --------- Layout 1 ASCII 0 Keyboard 0 Movement Mouse Keybinds 0 Fullscreen 2 Font 16/SmallcapsGlow Map View 50x40 Zoom Use 0% Tactical HUD 1 Map Filters NONE Filters NONE Steam SD RUN: c102bf99-6dfb-4673-bbeb-0bc3a39f9926